bitfinex-derivatives/quotes_SOLF0:USTF0_20251209
["timestamp","ask_amount","ask_price","bid_price","bid_amount"]
[1765276055975,14.74264572,132.58,132.57,6.789]
[1765276056271,11.52264572,132.58,132.57,6.789]
[1765276056672,11.52264572,132.58,132.57,9.839]
[1765276061573,14.74264572,132.58,132.57,6.789]
[1765276061971,14.74264572,132.58,132.56,6.7895]
[1765276062271,14.74264572,132.58,132.56,9.8395]
[1765276064080,11.52264572,132.58,132.57,3.05]
[1765276064281,14.74264572,132.58,132.57,3.05]
[1765276064577,11.52264572,132.58,132.57,3.05]
[1765276068379,14.74264572,132.58,132.57,3.05]
[1765276069077,14.74264572,132.58,132.56,9.8395]
[1765276071779,14.74264572,132.58,132.55,0.05109124]
[1765276071780,3.22,132.57,132.55,0.05109124]
[1765276072280,3.22,132.56,132.55,0.05109124]
[1765276093500,3.22,132.56,132.55,6.84109124]
[1765276100712,17.36,132.56,132.55,6.84109124]
[1765276104909,14.14,132.56,132.55,9.89109124]
[1765276105408,17.22,132.56,132.55,9.89109124]
[1765276108710,17.22,132.56,132.55,6.84109124]
[1765276117619,14.14,132.56,132.55,9.89109124]
[1765276120523,17.51,132.56,132.55,9.89109124]
[1765276127525,17.51,132.56,132.55,0.05109124]
[1765276130139,17.51,132.56,132.55,6.84109124]
[1765276141546,17.51,132.56,132.55,0.05109124]
[1765276145149,17.51,132.56,132.55,6.84109124]
[1765276150954,17.51,132.56,132.55,9.89109124]
[1765276151356,17.51,132.56,132.55,6.84109124]
[1765276157667,17.51,132.56,132.55,0.05109124]
[1765276166275,23.21118076,132.56,132.55,0.05109124]
[1765276172081,30.00068076,132.56,132.55,0.05109124]
[1765276172277,3.35,132.55,132.52,6.7911]
[1765276172479,3.35,132.53,132.52,6.7911]
[1765276175484,17.45,132.53,132.52,6.7911]
[1765276179290,14.1,132.53,132.52,9.8711]
[1765276179881,17.45,132.53,132.52,9.8711]
[1765276183087,14.1,132.53,132.52,9.8711]
[1765276185590,17.45,132.53,132.52,9.8711]
[1765276185895,14.1,132.53,132.52,9.8711]
[1765276188095,17.45,132.53,132.52,9.8711]
[1765276195099,14.1,132.53,132.52,9.8711]
[1765276199003,17.5,132.53,132.52,9.8711]
[1765276199894,17.5,132.53,132.52,6.7911]
[1765276200592,3.4,132.52,132.51,70.98958657]
[1765276202395,3.4,132.52,132.46,179.51442357]
[1765276202594,3.4,132.52,132.44,176.19340048]
[1765276202991,3.4,132.52,132.45,3.16]
[1765276203393,3.25,132.51,132.48,6.7935]
[1765276203598,3.25,132.49,132.48,6.7935]
[1765276205008,13.26,132.49,132.48,6.7935]
[1765276210208,10.01,132.49,132.48,9.9535]
[1765276213918,3.25,132.48,132.47,2.09833251]
[1765276214506,3.25,132.48,132.47,5.25833251]
[1765276216015,3.25,132.48,132.47,12.05243251]
[1765276218721,3.25,132.48,132.47,6.85104641]
[1765276221116,3.25,132.48,132.47,10.01104641]
[1765276223820,3.25,132.48,132.47,0.05694641]
[1765276235639,10.0436,132.48,132.47,0.05694641]
[1765276236643,20.9736,132.48,132.47,0.05694641]
[1765276240146,14.18,132.48,132.47,0.05694641]
[1765276240543,20.9736,132.48,132.47,0.05694641]
[1765276240745,26.78288675,132.48,132.47,0.05694641]
[1765276241347,32.49517672,132.48,132.47,0.05694641]
[1765276254260,19.89228997,132.48,132.47,0.05694641]
[1765276254454,10.93,132.48,132.47,3.13694641]
[1765276254854,8.11468268,132.48,132.47,9.93104641]
[1765276255064,8.11468268,132.48,132.47,11.43104641]
[1765276255557,0.05298594,132.5,132.49,6.7931]
[1765276255765,0.05298594,132.5,132.49,8.8344861]
[1765276257164,3.07,132.55,132.51,6.792]
[1765276257356,3.07,132.55,132.51,8.8333861]
[1765276258168,3.44597008,132.54,132.52,0.04906272]
[1765276258365,3.44597008,132.54,132.52,6.84046272]
[1765276258562,16.21597008,132.54,132.52,6.84046272]
[1765276260467,12.82597008,132.54,132.53,6.791]
[1765276263072,12.82597008,132.54,132.53,8.8323861]
[1765276264759,10.35804088,132.54,132.53,8.291]
[1765276265771,0.05239628,132.55,132.53,8.291]
[1765276265972,3.22,132.6,132.58,6.7884]
[1765276267072,3.22,132.6,132.58,6.84006399]
[1765276267376,3.22,132.62,132.59,6.7879]
[1765276268577,3.22,132.61,132.59,6.7879]
[1765276269969,3.22,132.61,132.58,0.05166399]
[1765276271476,10.007,132.61,132.58,0.05166399]
[1765276271676,3.22,132.6,132.58,0.05166399]
[1765276272677,3.22,132.59,132.58,0.05166399]
[1765276279273,3.22,132.61,132.58,0.05166399]
[1765276280476,3.22,132.61,132.59,6.7878]
[1765276287577,3.22,132.61,132.58,0.05166399]
[1765276289590,3.18,132.6,132.58,6.83996399]
[1765276294687,3.18,132.6,132.58,0.05166399]
[1765276294688,9.9676,132.6,132.58,0.05166399]
[1765276294889,3.18,132.59,132.53,64.16]
[1765276295399,3.18,132.58,132.55,6.7896]
[1765276295901,3.18,132.57,132.55,6.84463912]
[1765276296089,3.18,132.57,132.55,0.05503912]
[1765276298292,9.969,132.57,132.55,0.05503912]
[1765276298497,3.18,132.56,132.55,0.05503912]
[1765276299790,9.9695,132.56,132.55,0.05503912]
[1765276299991,15.67470437,132.56,132.55,0.05503912]
[1765276303091,3.18,132.54,132.51,6.792]
[1765276303897,3.23595809,132.54,132.51,6.84294034]
[1765276308096,3.23595809,132.54,132.52,6.7915]
[1765276313596,0.05595809,132.54,132.51,0.05094034]
[1765276313798,0.05595809,132.54,132.53,6.791]
[1765276313998,9.969,132.58,132.51,108.88764439]
[1765276314296,3.18,132.58,132.52,105.6445]
[1765276314504,3.18,132.58,132.53,64.14]
[1765276314892,0.05189109,132.57,132.54,0.05502568]
[1765276315601,0.05189109,132.57,132.55,6.7899]
[1765276319706,3.29189109,132.57,132.54,6.84552568]
[1765276320706,3.24,132.56,132.54,6.84552568]
[1765276323011,3.45189109,132.57,132.55,6.7897]
[1765276323204,0.05189109,132.57,132.55,6.7897]
[1765276323404,0.05189109,132.57,132.54,0.05502568]
[1765276323604,0.05189109,132.57,132.56,6.7895]
[1765276342723,3.4,132.62,132.56,107.65212755]
[1765276342924,3.4,132.64,132.58,2.03832755]
[1765276343232,3.4,132.64,132.6,2.03832755]
[1765276343633,3.4,132.65,132.62,6.7864]
[1765276343936,3.4,132.65,132.62,6.84042092]
[1765276345245,3.4,132.65,132.63,6.7858]
[1765276346939,6.7839,132.67,132.63,6.7858]
[1765276347134,3.4,132.66,132.63,6.7858]
[1765276347332,3.4,132.68,132.62,2.09234847]
[1765276347531,3.4,132.68,132.64,2.03832755]
[1765276347731,3.4,132.68,132.65,0.05103129]
[1765276348434,3.4,132.68,132.65,6.83583129]
[1765276348734,3.4,132.68,132.65,0.05103129]
[1765276354838,3.4,132.68,132.65,6.83573129]
[1765276355148,3.4,132.68,132.65,0.05103129]
[1765276356237,3.4,132.68,132.66,6.7843]
[1765276356846,3.19,132.7,132.67,6.7838]
[1765276357243,3.19,132.7,132.66,2.03832755]
[1765276357435,3.19,132.7,132.65,105.59113129]
[1765276357642,3.19,132.7,132.65,0.05103129]
[1765276358149,3.19,132.69,132.65,0.05103129]
[1765276358345,3.19,132.69,132.66,0.04862806]
[1765276358645,3.19,132.69,132.67,6.7836]
[1765276362555,3.19,132.71,132.66,0.04862806]
[1765276362755,3.19,132.71,132.66,107.61915561]
[1765276363248,3.19,132.72,132.68,105.5164]
[1765276363455,3.19,132.72,132.69,0.0542101]
[1765276367446,3.19,132.72,132.69,6.8370101]
[1765276367647,3.19,132.74,132.69,0.0542101]
[1765276367844,3.19,132.74,132.69,2.09253765]
[1765276368248,3.19,132.74,132.7,64.08]
[1765276368551,2.03832755,132.77,132.7,64.08]
[1765276368751,3.19,132.75,132.72,0.05727003]
[1765276369551,5.22832755,132.73,132.72,0.05727003]
[1765276369752,3.19,132.72,132.66,2.03832755]
[1765276370150,3.19,132.71,132.67,6.7834]
[1765276370958,3.23851512,132.7,132.68,0.05518792]
[1765276376861,3.23851512,132.7,132.68,6.83848792]
[1765276379961,0.04851512,132.7,132.69,6.7828]
[1765276386566,3.21851512,132.7,132.69,6.7828]
[1765276387258,3.21851512,132.7,132.68,0.05518792]
[1765276387663,3.17,132.69,132.68,0.05518792]
[1765276388370,9.9528,132.69,132.68,0.05518792]
[1765276388869,3.17,132.69,132.68,0.05518792]
[1765276390465,9.9528,132.69,132.68,0.05518792]
[1765276391972,3.17,132.69,132.68,0.05518792]
[1765276392877,0.04851512,132.7,132.68,0.05518792]
[1765276393062,3.21851512,132.7,132.68,0.05518792]
[1765276394179,3.21851512,132.7,132.68,6.83848792]
[1765276396779,0.04851512,132.7,132.68,6.83848792]
[1765276397879,3.21851512,132.7,132.68,6.83848792]
[1765276411687,3.21851512,132.7,132.68,0.05518792]
[1765276412287,8.92497432,132.69,132.68,0.05518792]
[1765276412589,3.28,132.68,132.65,6.7849]
[1765276413390,3.28,132.67,132.65,0.05652697]
[1765276413597,3.33510255,132.67,132.65,0.05652697]
[1765276413788,5.8208626,132.66,132.65,0.05652697]
[1765276414187,5.82088582,132.66,132.65,0.05652697]
[1765276414591,5.82088582,132.66,132.65,6.84142697]
[1765276414791,0.05510255,132.67,132.65,6.84142697]
[1765276416288,3.33510255,132.67,132.65,6.84142697]
[1765276416788,0.05510255,132.67,132.65,6.84142697]
[1765276417398,0.05510255,132.67,132.66,6.7843]
[1765276418195,3.33510255,132.67,132.65,6.84132697]
[1765276420196,3.33510255,132.67,132.65,0.05652697]
[1765276420197,3.28,132.66,132.65,0.05652697]
[1765276421790,0.05510255,132.67,132.65,0.05652697]
[1765276422393,0.05510255,132.67,132.66,6.7843]
[1765276422783,5.55404596,132.7,132.65,64.13652697]
[1765276422987,3.28,132.71,132.65,64.13652697]
[1765276423590,3.28,132.71,132.65,172.85483951]
[1765276423896,0.0554054,132.69,132.65,172.85483951]
[1765276424096,0.0554054,132.69,132.67,6.7835]
[1765276425498,3.3354054,132.69,132.67,6.7835]
[1765276428102,0.0554054,132.69,132.67,6.7835]
[1765276429924,3.3354054,132.69,132.67,6.7835]
[1765276430092,0.0554054,132.69,132.67,6.7835]
[1765276431201,3.3354054,132.69,132.67,6.7835]
[1765276431402,3.3354054,132.69,132.65,0.05652697]
[1765276432504,3.3354054,132.69,132.66,6.7842]
[1765276434008,0.0554054,132.69,132.67,6.7837]
[1765276437609,0.0554054,132.69,132.68,6.7833]
[1765276440208,3.25,132.74,132.67,172.78271254]
[1765276441110,3.25,132.74,132.69,0.05299398]
[1765276441712,3.25,132.74,132.7,6.7821]
[1765276441900,3.25,132.74,132.69,0.05299398]
[1765276442102,3.28,132.72,132.69,0.05299398]
[1765276442293,3.28,132.72,132.69,0.05126727]
[1765276443309,3.28,132.73,132.7,6.7822]
[1765276443511,3.28,132.73,132.7,6.83270418]
[1765276444922,3.28,132.73,132.71,6.7818]
[1765276445112,3.28,132.74,132.71,6.7818]
[1765276447913,3.28,132.74,132.7,6.83280418]
[1765276449315,3.28,132.72,132.7,0.05050418]
[1765276450512,17.70727478,132.71,132.7,0.05050418]
[1765276451015,3.28,132.7,132.66,6.7843]
[1765276451917,3.33253074,132.69,132.67,0.04960336]
[1765276453818,10.11543074,132.69,132.67,0.04960336]
[1765276454003,3.28,132.68,132.67,0.04960336]
[1765276454403,10.0633,132.68,132.67,0.04960336]
[1765276454608,3.28,132.67,132.63,6.7854]
[1765276454907,3.28,132.66,132.63,6.7854]
[1765276455613,10.12043461,132.66,132.63,0.05557965]
[1765276456119,3.28,132.65,132.63,0.05557965]
[1765276456518,10.065,132.65,132.63,0.05557965]
[1765276456714,3.28,132.64,132.63,0.05557965]
[1765276459012,10.065,132.65,132.63,0.05557965]
[1765276459619,3.28,132.64,132.63,0.05557965]
[1765276463218,0.05593461,132.66,132.63,0.05557965]
[1765276463423,3.28,132.65,132.63,0.05557965]
[1765276466629,3.33593461,132.66,132.63,6.84137965]
[1765276469135,3.33593461,132.66,132.63,0.05557965]
[1765276469643,3.33593461,132.66,132.63,6.84137965]
[1765276472157,0.05593461,132.66,132.64,6.7853]
[1765276472340,3.21593461,132.66,132.64,6.7853]
[1765276487458,0.05593461,132.66,132.65,6.7849]
[1765276493968,0.05593461,132.66,132.63,6.84097965]
[1765276495171,0.05593461,132.66,132.64,6.7852]
[1765276496477,3.21593461,132.66,132.64,6.7852]
[1765276497273,0.05593461,132.66,132.64,6.7852]
[1765276497870,3.21593461,132.66,132.63,6.84137965]
[1765276500471,0.05593461,132.66,132.63,6.84137965]
[1765276500778,0.05593461,132.66,132.65,6.7849]
[1765276524104,3.35,132.72,132.65,105.5414]
[1765276524408,8.99831408,132.71,132.66,64.08]
[1765276524608,3.35,132.71,132.66,64.08]
[1765276524812,6.7813,132.72,132.66,64.08]
[1765276525110,0.05636981,132.7,132.68,0.05348788]
[1765276526504,0.05636981,132.7,132.69,6.7827]
[1765276539729,3.43636981,132.7,132.69,6.7827]
[1765276540027,3.43636981,132.7,132.62,122.31609324]
[1765276540327,3.38,132.69,132.63,64.06]
[1765276540625,3.38,132.69,132.65,6.7844]
[1765276541013,3.38,132.67,132.66,0.04839867]
[1765276542218,3.38,132.67,132.66,6.83269867]
[1765276543321,3.43074904,132.68,132.66,6.83269867]
[1765276553930,0.05074904,132.68,132.67,6.7838]
[1765276557022,3.43074904,132.68,132.66,0.04839867]
[1765276557624,0.05074904,132.68,132.66,0.04839867]
[1765276558532,0.05074904,132.68,132.66,6.83269867]
[1765276558928,0.05074904,132.68,132.66,0.04839867]
[1765276559130,0.05074904,132.68,132.67,6.7838]
[1765276563840,0.05074904,132.68,132.66,6.83269867]
[1765276564038,3.17074904,132.68,132.66,0.04839867]
[1765276565441,3.17074904,132.68,132.66,6.83269867]
[1765276589361,3.17074904,132.68,132.66,0.04839867]
[1765276589669,8.89103152,132.67,132.66,0.04839867]
[1765276589861,14.8241206,132.67,132.66,0.04839867]
[1765276590569,21.6079206,132.67,132.66,0.04839867]
[1765276595172,15.95688908,132.67,132.66,0.04839867]
[1765276595768,5.93308908,132.67,132.66,0.04839867]
[1765276596364,0.05074904,132.68,132.66,6.83269867]
[1765276596565,0.05074904,132.68,132.66,0.04839867]
[1765276598472,0.05074904,132.68,132.67,6.7838]
[1765276603875,0.05074904,132.68,132.67,8.81937459]
[1765276613585,10.28857922,132.75,132.68,105.5191]
[1765276613885,10.28857922,132.75,132.69,2.03557459]
[1765276613886,5.6251405,132.74,132.69,2.03557459]
[1765276614075,3.24,132.75,132.69,2.03557459]
[1765276614273,10.0198,132.75,132.72,6.7813]
[1765276614473,3.24,132.74,132.72,6.7813]
[1765276614673,3.29111948,132.74,132.72,6.83823341]
[1765276620185,3.29111948,132.74,132.73,6.7808]
[1765276622476,0.05111948,132.74,132.73,6.7808]
[1765276623383,3.34,132.79,132.73,107.51087459]
[1765276623578,3.34,132.79,132.73,2.03557459]
[1765276623777,3.34,132.78,132.73,2.03557459]
[1765276623979,3.34,132.78,132.75,6.7797]
[1765276624380,3.34,132.78,132.75,6.8333391]
[1765276625483,3.34,132.8,132.76,6.7791]
[1765276625684,3.34,132.8,132.77,0.04996444]
[1765276626088,3.34,132.82,132.77,0.04996444]
[1765276627591,3.34,132.81,132.78,6.7782]
[1765276629590,3.34,132.83,132.79,6.7776]
[1765276629793,3.34,132.83,132.8,0.04848413]
[1765276629981,3.34,132.83,132.8,6.82548413]
[1765276632797,3.34,132.83,132.81,6.7767]
[1765276636097,10.1146,132.85,132.81,6.7767]
[1765276636393,3.34,132.85,132.81,6.7767]
[1765276637802,3.34,132.85,132.82,6.7761]
[1765276641404,3.34,132.84,132.8,6.82518413]
[1765276641592,3.34,132.84,132.8,0.04848413]
[1765276642107,3.34,132.82,132.8,0.04848413]
[1765276645203,3.34,132.82,132.8,6.82568413]
[1765276648197,3.34,132.82,132.8,0.04848413]
[1765276649401,3.34,132.82,132.8,6.82558413]
[1765276649597,3.06,132.83,132.8,6.82558413]
[1765276651211,9.8357,132.83,132.8,0.04848413]
[1765276651506,3.06,132.82,132.8,0.04848413]
[1765276654112,3.06,132.82,132.8,6.82568413]
[1765276655015,3.06,132.83,132.81,6.7767]
[1765276656614,3.06,132.83,132.82,6.7762]
[1765276656808,3.06,132.85,132.8,0.04848413]
[1765276658620,3.06,132.84,132.81,6.7762]
[1765276660322,3.06,132.84,132.82,6.776]
[1765276662118,3.06,132.84,132.83,6.7757]
[1765276662718,3.06,132.85,132.83,6.7757]
[1765276663021,3.06,132.85,132.83,6.832137]
[1765276663720,3.06,132.85,132.83,0.056437]
[1765276664621,3.06,132.84,132.83,0.056437]
[1765276670227,14.25351218,132.84,132.83,0.056437]
[1765276670427,3.06,132.83,132.8,6.7772]
[1765276670630,5.62702975,132.82,132.76,64.02]
[1765276670830,3.06,132.81,132.76,64.02]
[1765276671427,0.04948852,132.8,132.77,0.04811159]
[1765276673328,0.04948852,132.8,132.79,6.7777]
[1765276677031,3.06,132.83,132.81,6.7764]
[1765276677227,3.06,132.84,132.81,6.7764]
[1765276677428,3.06,132.82,132.78,3.1733567]
[1765276678040,3.06,132.82,132.79,0.05404273]
[1765276678443,3.06,132.82,132.8,6.7771]
[1765276680739,3.16,132.85,132.8,6.7771]
[1765276680939,3.16,132.83,132.81,0.05097082]
[1765276681333,8.78470843,132.82,132.81,0.05097082]
[1765276681536,14.31444053,132.82,132.81,0.05097082]
[1765276682434,21.09064053,132.82,132.81,0.05097082]
[1765276690052,14.31444053,132.82,132.81,0.05097082]
[1765276694040,3.36,132.81,132.78,6.7781]
[1765276694351,19.96185405,132.82,132.74,107.49861352]
[1765276694352,3.36,132.79,132.74,107.49861352]
[1765276694946,3.36,132.77,132.75,0.0506922]
[1765276695146,3.36,132.77,132.75,0.04873886]
[1765276695944,3.36,132.77,132.75,6.82803886]
[1765276699746,3.36,132.77,132.76,6.7792]
[1765276700452,0.04787998,132.78,132.77,6.7787]
[1765276701144,3.40787998,132.78,132.77,6.7787]
[1765276702255,3.40787998,132.78,132.75,0.04873886]
[1765276703056,5.4390935,132.78,132.75,0.04873886]
[1765276703242,3.36,132.77,132.75,0.04873886]
[1765276703447,3.36,132.77,132.75,6.82843886]
[1765276704955,5.39121352,132.76,132.75,0.04873886]
[1765276706559,3.36,132.77,132.75,0.04873886]
[1765276710758,12.17001352,132.77,132.75,0.04873886]
[1765276710963,3.07,132.76,132.75,0.04873886]
[1765276719470,9.8492,132.76,132.75,0.04873886]
[1765276723769,3.07,132.73,132.68,2.03121352]
[1765276724474,3.07,132.72,132.68,2.03121352]
[1765276724672,0.04993434,132.71,132.69,0.05011073]
[1765276724863,3.11993434,132.71,132.69,0.05011073]
[1765276725470,0.04993434,132.71,132.7,6.7823]
[1765276736381,0.04993434,132.71,132.7,8.2823]
[1765276737176,3.07,132.7,132.61,105.5713]
[1765276737487,3.07,132.68,132.62,2.03121352]
[1765276737684,3.07,132.67,132.62,2.03121352]
[1765276737981,9.8544,132.66,132.62,8.81751352]
[1765276738183,3.07,132.66,132.62,8.81751352]
[1765276738372,0.05685076,132.65,132.63,0.05685887]
[1765276738568,0.05685076,132.65,132.63,6.84275887]
[1765276742090,0.05685076,132.65,132.64,6.7854]
[1765276746896,0.05685076,132.65,132.64,8.81661352]
[1765276747100,3.17,132.72,132.68,2.03121352]
[1765276747586,5.64417025,132.74,132.68,2.03121352]
[1765276747791,2.03121352,132.75,132.7,8.81341352]
[1765276747792,3.17,132.73,132.7,8.81341352]
[1765276747981,3.22755286,132.73,132.7,8.86364924]
[1765276751090,3.23,132.7,132.59,105.5906]
[1765276751397,3.23,132.68,132.62,2.03121352]
[1765276752292,0.04839937,132.66,132.64,0.05274027]
[1765276752499,6.83289937,132.66,132.64,0.05274027]
[1765276752798,3.27839937,132.66,132.64,0.05274027]
[1765276753297,0.04839937,132.66,132.64,0.05274027]
[1765276753597,3.27839937,132.66,132.64,0.05274027]
[1765276754499,10.06279937,132.66,132.64,0.05274027]
[1765276755294,10.0149,132.65,132.64,0.05274027]
[1765276755898,3.23,132.63,132.6,70.867]
[1765276756095,3.23,132.63,132.56,65.39043832]
[1765276756401,3.23,132.63,132.53,242.98377397]
[1765276756788,3.27765214,132.6,132.57,0.05552881]
[1765276757098,3.27765214,132.6,132.57,0.04795235]
[1765276758202,3.23,132.58,132.52,6.7912]
[1765276758404,3.23,132.58,132.49,105.6663]
[1765276758601,3.23,132.56,132.48,64.08]
[1765276758793,3.23,132.54,132.48,64.08]
[1765276759000,3.23,132.54,132.45,105.6977]
[1765276759298,3.23,132.5,132.48,0.05230236]
[1765276760606,3.23,132.5,132.43,64.08]
[1765276761198,3.23,132.5,132.41,3.18178969]
[1765276761199,3.23,132.48,132.39,64.1]
[1765276761404,3.23,132.44,132.39,64.1]
[1765276761907,3.23,132.44,132.31,513.633]
[1765276761908,3.23,132.39,132.29,3.18178969]
[1765276762110,3.23,132.37,132.28,3.18178969]
[1765276762301,3.23,132.37,132.29,112.633]
[1765276762603,3.23,132.36,132.26,105.8495]
[1765276762805,3.23,132.36,132.27,105.8436]
[1765276762998,0.05295545,132.32,132.3,0.05512968]
[1765276764300,10.0282,132.39,132.3,64.17512968]
[1765276764497,9.07605209,132.42,132.32,112.6068]
[1765276764694,3.23,132.42,132.32,112.6068]
[1765276764907,9.07600714,132.42,132.33,105.7956]
[1765276765105,3.23,132.42,132.34,105.789]
[1765276765401,0.05530419,132.39,132.37,0.05049727]
[1765276765607,0.05735187,132.39,132.37,0.05037636]
[1765276765801,0.05735187,132.39,132.37,6.84917636]
[1765276766104,0.05735187,132.39,132.37,0.05037636]
[1765276767109,3.28735187,132.39,132.3,105.817]
[1765276767310,3.23,132.39,132.3,64.16]
[1765276767506,3.23,132.38,132.3,64.16]
[1765276768208,3.14,132.34,132.33,0.05196857]
[1765276768599,3.14,132.34,132.27,64.16]
[1765276769108,3.14,132.34,132.27,176.8101]
[1765276769510,0.05488646,132.32,132.29,6.85421061]
[1765276770108,3.19488646,132.32,132.29,0.05111061]
[1765276770299,3.19488646,132.32,132.24,64.18]
[1765276770499,3.14,132.31,132.24,64.18]
[1765276770698,3.14,132.3,132.24,64.18]
[1765276770898,3.14,132.3,132.21,6.8073]
[1765276771198,3.18845665,132.27,132.24,0.04859973]
[1765276771399,3.18845665,132.27,132.18,112.7225]
[1765276771704,115.7999,132.26,132.17,62.0]
[1765276771902,3.14,132.25,132.16,64.18]
[1765276772109,3.14,132.25,132.16,176.924]
[1765276772306,3.14,132.23,132.16,70.9899]
[1765276772512,114.33239989,132.27,132.16,70.9899]
[1765276772513,3.14,132.21,132.19,0.04796286]
[1765276772706,0.05750957,132.22,132.19,0.04756338]
[1765276773016,3.19750957,132.22,132.19,0.04756338]
[1765276774114,0.05750957,132.22,132.19,0.04756338]
[1765276774322,0.05750957,132.22,132.2,105.9022]
[1765276774510,0.05750957,132.22,132.19,105.95466338]
[1765276775221,0.05750957,132.22,132.2,112.7098]
[1765276775710,0.05750957,132.22,132.2,176.9298]
[1765276775916,3.14,132.28,132.21,6.8069]
[1765276776212,3.14,132.28,132.2,64.22]
[1765276776816,3.19372477,132.25,132.23,0.05763688]
[1765276777117,3.19145829,132.25,132.23,0.05763688]
[1765276777712,0.05145829,132.25,132.23,0.05763688]
[1765276778816,3.19145829,132.25,132.23,0.05763688]
[1765276780212,0.05145829,132.25,132.23,0.05763688]
[1765276780708,0.05145829,132.25,132.24,6.8059]
[1765276781308,0.05145829,132.25,132.23,0.05763688]
[1765276782021,0.05145829,132.25,132.23,6.86363688]
[1765276785008,3.14,132.31,132.27,105.8455]
[1765276785214,3.14,132.37,132.27,105.8455]
[1765276785414,3.14,132.35,132.28,105.838]
[1765276786014,3.19078378,132.33,132.3,0.05243938]
[1765276786727,3.14,132.28,132.18,105.9162]
[1765276787021,3.14,132.26,132.15,105.9398]
[1765276787224,3.14,132.22,132.12,110.07493787]
[1765276787520,3.14,132.18,132.07,106.0039]
[1765276787708,3.14,132.15,132.09,6.8133]
[1765276787914,3.14,132.13,132.11,0.04949013]
[1765276788124,3.14,132.13,132.05,6.8155]
[1765276788522,3.14,132.13,132.05,170.2821]
[1765276788724,3.14,132.17,132.08,1.44]
[1765276789230,0.05018772,132.14,132.11,1.49331276]
[1765276789416,3.14,132.21,132.13,107.3942]
[1765276789616,9.9464,132.24,132.16,1.44]
[1765276789816,3.14,132.24,132.16,1.44]
[1765276790037,3.14,132.24,132.16,107.3717]
[1765276790526,3.14,132.2,132.14,105.9503]
[1765276790722,3.14,132.2,132.13,170.2342]
[1765276791126,3.14,132.2,132.13,71.0913]
[1765276791330,3.14,132.2,132.13,6.8113]
[1765276791621,3.14,132.17,132.15,0.05254146]
[1765276793224,0.05119196,132.18,132.15,0.05254146]
[1765276793424,3.19119196,132.18,132.15,0.05254146]
[1765276795114,3.19119196,132.18,132.11,6.8123]
[1765276795328,3.19119196,132.18,132.12,107.5035]
[1765276795632,3.19119196,132.18,132.11,105.9704]
[1765276796223,3.19119196,132.18,132.13,0.05337902]
[1765276800029,3.2,132.15,132.09,6.8134]
[1765276800230,3.2,132.13,132.03,106.0344]
[1765276800627,3.2,132.11,132.02,106.0443]
[1765276800825,3.2,132.11,132.01,171.9593]
[1765276801129,0.04782426,132.07,132.05,0.05601798]
[1765276801332,3.24782426,132.07,132.05,0.05601798]
[1765276801730,3.24782426,132.07,131.97,107.7216]
[1765276801925,3.2,132.03,131.95,6.8208]
[1765276802124,3.2,132.03,131.96,107.7342]
[1765276802324,3.2,132.06,132.0,106.0625]
[1765276802524,3.2,132.06,131.99,106.0662]
[1765276802729,3.2,132.06,131.98,65.96]
[1765276802928,0.05186302,132.03,132.01,0.05291972]
[1765276803136,3.25186302,132.03,132.01,0.05291972]
[1765276803529,3.25186302,132.03,131.94,1.7]
[1765276803832,3.2,132.03,131.94,1.7]
[1765276804039,3.2,132.03,131.97,1.7]
[1765276804232,3.2,132.03,131.95,106.1017]
[1765276804537,0.05790271,132.0,131.98,107.80953671]
[1765276804836,3.35,132.07,131.99,1.64]
[1765276805027,3.35,132.07,131.99,107.7071]
[1765276805336,3.35,132.04,131.98,106.0786]
[1765276805739,0.05680482,132.02,132.0,8.50680951]
[1765276806042,0.05117223,132.02,132.0,8.50680951]